bitfinex/quotes_SOLUSD_20250118
["timestamp","ask_amount","ask_price","bid_price","bid_amount"]
[1737184291840,5.25047281,233.88,233.8,27.34068615]
[1737184292021,4.98612763,233.86,233.8,27.34068615]
[1737184292736,4.98612763,233.86,233.8,6.55610665]
[1737184292926,32.32681378,233.86,233.78,27.34068615]
[1737184293128,32.32681378,233.86,233.76,27.34068615]
[1737184293325,4.98612763,233.86,233.78,27.34068615]
[1737184293540,4.98612763,233.86,233.8,27.34068615]
[1737184293729,27.34068615,233.88,233.79,4.2773]
[1737184295446,40.42098615,233.9,233.8,27.34068615]
[1737184295633,0.063,233.9,233.84,27.34068615]
[1737184295834,0.063,233.9,233.86,27.34068615]
[1737184296245,0.063,233.9,233.84,27.34068615]
[1737184296722,31.67908615,233.9,233.82,27.34068615]
[1737184297037,27.34068615,233.88,233.79,4.2773]
[1737184297435,21.12621781,233.88,233.79,4.2773]
[1737184297628,16.85051781,233.88,233.79,4.2773]
[1737184297828,16.91351781,233.9,233.82,16.85051781]
[1737184298043,0.063,233.9,233.82,16.85051781]
[1737184298354,16.85051781,233.86,233.79,4.2773]
[1737184298530,16.85051781,233.84,233.76,16.85051781]
[1737184298732,16.85051781,233.84,233.67,4.2795]
[1737184298940,16.85051781,233.75,233.74,0.03]
[1737184299149,16.85051781,233.77,233.74,0.03]
[1737184299357,16.85051781,233.85,233.76,16.85051781]
[1737184299555,16.85051781,233.87,233.75,4.278]
[1737184299726,16.85051781,233.87,233.78,16.85051781]
[1737184299926,21.12641781,233.87,233.78,16.85051781]
[1737184300255,16.85051781,233.87,233.78,16.85051781]
[1737184300550,0.063,233.88,233.75,14.9731]
[1737184300751,0.063,233.88,233.83,16.85051781]
[1737184301044,16.85051781,233.87,233.75,14.9731]
[1737184301247,16.85051781,233.87,233.74,0.03]
[1737184301248,16.85051781,233.82,233.74,0.03]
[1737184301549,16.85051781,233.86,233.76,4.2778]
[1737184301729,21.18921781,233.88,233.79,16.85051781]
[1737184302051,21.18931781,233.88,233.77,16.85051781]
[1737184302351,16.85051781,233.86,233.77,16.85051781]
[1737184302560,16.91351781,233.88,233.79,16.85051781]
[1737184303235,21.18931781,233.88,233.79,16.85051781]
[1737184303432,0.063,233.88,233.81,16.85051781]
[1737184305558,0.063,233.88,233.86,16.85051781]
[1737184306155,0.063,233.88,233.85,4.2762]
[1737184306855,0.0001,233.88,233.87,16.85051781]
[1737184307024,5.25047281,234.0,233.9,20.0]
[1737184307227,5.25047281,234.0,233.99,16.85051781]
[1737184307756,7.281e-05,234.0,233.99,37.97463562]
[1737184308129,16.85051781,234.06,233.99,16.85051781]
[1737184308324,16.85051781,234.08,233.99,21.12411781]
[1737184308854,16.85051781,234.08,233.99,16.85051781]
[1737184309039,16.85051781,234.0,233.91,16.85051781]
[1737184309353,16.85051781,233.98,233.91,16.85051781]
[1737184310852,3.13792581,233.97,233.91,16.85051781]
[1737184311060,3.13792581,233.97,233.89,4.2754]
[1737184311238,3.13792581,233.97,233.91,16.85051781]
[1737184311434,3.13792581,233.97,233.93,16.85051781]
[1737184311858,3.13792581,233.97,233.91,16.85051781]
[1737184312061,16.85051781,234.0,233.91,16.85051781]
[1737184312247,4.2737,233.99,233.91,16.85051781]
[1737184312446,16.85051781,234.0,233.91,16.85051781]
[1737184312635,16.85051781,234.02,233.93,16.85051781]
[1737184313362,21.12341781,234.04,233.95,16.85051781]
[1737184313559,3.14510941,234.01,233.95,16.85051781]
[1737184314353,16.85051781,233.99,233.91,16.85051781]
[1737184314669,16.85051781,233.97,233.89,16.85051781]
[1737184315360,3.92012267,234.0,233.87,4.2758]
[1737184315361,16.85051781,233.95,233.87,21.12631781]
[1737184316368,8.19070761,233.94,233.87,21.12631781]
[1737184316666,16.85051781,233.89,233.86,0.03]
[1737184317338,2.52519349,233.88,233.86,0.03]
[1737184317542,10.7159011,233.88,233.86,0.03]
[1737184318269,10.7159011,233.88,233.83,16.85051781]
[1737184318444,8.19070761,233.88,233.83,16.85051781]
[1737184318774,3.14510941,233.87,233.85,16.85051781]
[1737184319659,21.12531781,233.93,233.85,21.12661781]
[1737184320065,16.85051781,233.95,233.87,16.85051781]
[1737184320374,16.85051781,233.97,233.89,16.85051781]
[1737184320777,16.85051781,233.97,233.87,16.85051781]
[1737184321063,8.22214783,233.96,233.87,16.85051781]
[1737184321241,2.52984419,233.94,233.87,16.35051781]
[1737184321768,2.52984419,233.94,233.91,16.85051781]
[1737184321971,2.52984419,233.94,233.89,16.85051781]
[1737184322267,8.22214783,233.93,233.89,16.85051781]
[1737184322442,8.22214783,233.93,233.88,4.2756]
[1737184323077,16.85051781,233.9,233.81,4.2769]
[1737184323253,16.85051781,233.83,233.76,16.85051781]
[1737184323466,16.85051781,233.85,233.78,16.85051781]
[1737184323661,16.85051781,233.85,233.76,16.85051781]
[1737184323847,16.85051781,233.83,233.75,4.278]
[1737184324050,14.9629,233.91,233.74,16.88051781]
[1737184324051,16.85051781,233.81,233.74,0.03]
[1737184324355,16.85051781,233.75,233.74,0.03]
[1737184324560,0.77501326,233.75,233.74,0.03]
[1737184324756,0.77501326,233.84,233.74,0.03]
[1737184325154,16.85051781,233.76,233.74,0.03]
[1737184325670,8.24064562,233.75,233.74,0.03]
[1737184326967,12.51864562,233.75,233.74,0.03]
[1737184327671,7.44747908,233.75,233.74,0.03]
[1737184327977,20.0,233.72,233.58,16.85051781]
[1737184328159,16.85051781,233.65,233.58,16.85051781]
[1737184328653,16.85051781,233.65,233.56,16.85051781]
[1737184328856,16.85051781,233.63,233.52,16.85051781]
[1737184329069,16.85051781,233.64,233.5,16.85051781]
[1737184329274,0.77501326,233.63,233.5,16.85051781]
[1737184329652,0.77501326,233.63,233.52,16.85051781]
[1737184330054,4.2802,233.63,233.52,21.13271781]
[1737184330255,8.22155789,233.63,233.52,16.85051781]
[1737184330674,10.75736594,233.63,233.5,16.85051781]
[1737184331175,21.45796594,233.63,233.43,4.2839]
[1737184331351,16.85051781,233.59,233.5,16.85051781]
[1737184331762,17.62553107,233.59,233.5,16.85051781]
[1737184332165,17.62553107,233.59,233.41,5.66606494]
[1737184332166,16.85051781,233.55,233.46,16.85051781]
[1737184332458,16.85051781,233.53,233.44,16.85051781]
[1737184332663,16.85051781,233.55,233.46,16.85051781]
[1737184333548,21.13221781,233.55,233.46,16.85051781]
[1737184334060,16.85051781,233.53,233.46,16.85051781]
[1737184334682,16.85051781,233.53,233.44,16.85051781]
[1737184335060,29.56371781,233.53,233.44,16.85051781]
[1737184335262,12.7132,233.53,233.44,16.85051781]
[1737184335570,29.56371781,233.53,233.44,16.85051781]
[1737184335875,29.56371781,233.53,233.44,21.13411781]
[1737184336171,29.56371781,233.53,233.29,21.4325]
[1737184336172,16.85051781,233.46,233.22,0.03]
[1737184336353,16.85051781,233.44,233.23,36.4446]
[1737184336555,17.62553107,233.52,233.38,16.85051781]
[1737184336556,16.85051781,233.46,233.38,16.85051781]
[1737184337474,21.13391781,233.46,233.38,16.85051781]
[1737184338077,21.13391781,233.46,233.36,16.85051781]
[1737184338277,16.85051781,233.48,233.38,16.85051781]
[1737184338455,4.2826,233.5,233.35,4.2853]
[1737184338456,16.85051781,233.46,233.35,4.2853]
[1737184338657,0.77501326,233.49,233.37,16.85051781]
[1737184338959,21.13311781,233.5,233.41,16.85051781]
[1737184339162,22.4354,233.53,233.31,0.64261234]
[1737184339366,16.85051781,233.5,233.41,16.85051781]
[1737184339678,16.85051781,233.52,233.43,16.85051781]
[1737184340453,17.62553107,233.52,233.43,16.85051781]
[1737184340673,16.85051781,233.52,233.43,16.85051781]
[1737184340977,12.7132,233.53,233.45,16.85051781]
[1737184341359,16.85051781,233.52,233.43,16.85051781]
[1737184341582,12.7132,233.53,233.45,16.85051781]
[1737184342156,16.85051781,233.54,233.45,16.85051781]
[1737184342361,3.5371,233.65,233.52,33.70103562]
[1737184342566,16.85051781,233.61,233.52,16.85051781]
[1737184342765,16.85051781,233.59,233.44,1.91325701]
[1737184342956,16.85051781,233.55,233.44,1.91325701]
[1737184343157,0.77501326,233.54,233.44,1.91325701]
[1737184343377,21.13241781,233.54,233.45,16.85051781]
[1737184343880,16.85051781,233.58,233.49,16.85051781]
[1737184344080,16.85051781,233.56,233.47,16.85051781]
[1737184344278,16.85051781,233.58,233.49,16.85051781]
[1737184344490,4.2807,233.61,233.53,16.85051781]
[1737184345075,16.85051781,233.6,233.51,16.85051781]
[1737184345389,16.85051781,233.56,233.47,16.85051781]
[1737184345577,21.13211781,233.56,233.47,16.85051781]
[1737184347091,16.85051781,233.54,233.45,16.85051781]
[1737184347584,4.2821,233.53,233.45,16.85051781]
[1737184347775,4.2821,233.53,233.47,16.85051781]
[1737184347966,16.85051781,233.56,233.47,16.85051781]
[1737184348268,4.2818,233.55,233.47,16.85051781]
[1737184349071,4.2818,233.55,233.47,1.98323681]
[1737184349368,16.85051781,233.54,233.45,16.85051781]
[1737184349792,4.2814,233.57,233.49,16.85051781]
[1737184350178,5.05641326,233.57,233.49,16.85051781]
[1737184350570,5.05641326,233.57,233.47,16.85051781]
[1737184350871,16.85051781,233.56,233.47,21.13361781]
[1737184351279,16.85051781,233.56,233.47,16.85051781]
[1737184351473,17.62553107,233.56,233.47,16.85051781]
[1737184351779,16.85051781,233.56,233.47,16.85051781]
[1737184351983,16.85051781,233.56,233.47,21.13351781]
[1737184352185,16.85051781,233.56,233.47,16.85051781]
[1737184352696,4.2811,233.59,233.52,16.85051781]
[1737184352873,16.85051781,233.61,233.52,21.13271781]
[1737184353277,16.85051781,233.59,233.5,16.85051781]
[1737184353572,16.85051781,233.57,233.48,16.85051781]
[1737184354284,0.77501326,233.56,233.48,16.85051781]
[1737184354484,16.85051781,233.57,233.48,16.85051781]
[1737184354985,16.85051781,233.57,233.49,4.2828]
[1737184355987,16.85051781,233.55,233.46,16.85051781]
[1737184356577,16.85051781,233.57,233.48,16.85051781]
[1737184357103,16.85051781,233.59,233.5,16.85051781]
[1737184357272,3.13170283,233.56,233.5,16.85051781]
[1737184358996,16.85051781,233.59,233.5,16.85051781]
[1737184359301,16.85051781,233.59,233.51,4.2824]
[1737184359604,0.77501326,233.61,233.52,16.85051781]
[1737184359803,16.85051781,233.63,233.54,16.85051781]
[1737184360182,16.85051781,233.63,233.51,14.9885]
[1737184360183,8.16947958,233.58,233.52,16.85051781]
[1737184360903,7.958e-05,233.58,233.56,16.85051781]
[1737184361105,7.958e-05,233.58,233.57,4.2813]
[1737184361783,16.85051781,233.73,233.59,20.0]
[1737184362089,17.04288046,233.83,233.57,14.9847]
[1737184362090,16.85051781,233.79,233.69,16.85051781]
[1737184362282,17.62553107,233.79,233.69,16.85051781]
[1737184362604,16.85051781,233.77,233.69,16.85051781]
[1737184362810,13.1743,233.89,233.75,16.85051781]
[1737184362994,13.1743,233.89,233.81,16.85051781]
[1737184363521,16.85051781,233.88,233.79,16.85051781]
[1737184363806,16.85051781,233.84,233.75,16.85051781]
[1737184364391,16.85051781,233.84,233.61,0.64153042]
[1737184364392,16.85051781,233.76,233.57,26.8454]
[1737184364593,16.85051781,233.63,233.54,16.85051781]
[1737184364797,13.1743,233.74,233.55,0.64213869]
[1737184364984,0.77501326,233.85,233.55,0.64213869]
[1737184364985,13.1743,233.8,233.55,0.64213869]
[1737184365185,7.9058,233.84,233.57,14.9847]
[1737184365387,3.6293,233.84,233.6,20.0]
[1737184365587,5.05161326,233.83,233.61,0.64168189]
[1737184366195,16.85051781,233.78,233.69,16.85051781]
[1737184366604,16.85051781,233.73,233.64,16.85051781]
[1737184366814,16.85051781,233.67,233.58,21.13161781]
[1737184367028,16.85051781,233.65,233.56,16.85051781]
[1737184367228,16.85051781,233.65,233.56,21.13191781]
[1737184367528,16.85051781,233.59,233.5,21.13311781]
[1737184368598,16.85051781,233.61,233.5,21.13311781]
[1737184368917,4.2802,233.64,233.47,0.03]
[1737184368918,16.85051781,233.55,233.47,0.03]
[1737184369087,16.85051781,233.53,233.47,0.03]
[1737184369409,16.85051781,233.51,233.47,0.03]
[1737184370806,16.85051781,233.53,233.47,0.03]
[1737184371408,16.85051781,233.51,233.47,0.03]
[1737184371606,16.85051781,233.49,233.47,0.03]
[1737184371796,0.77501326,233.48,233.47,0.03]
[1737184372617,5.05801326,233.48,233.47,0.03]
[1737184373118,8.22595954,233.48,233.47,0.03]
[1737184373914,13.9279788,233.48,233.47,0.03]
[1737184374214,16.85051781,233.39,233.38,0.03]
[1737184374717,21.13511781,233.39,233.38,0.03]
[1737184374921,21.13511781,233.39,233.38,0.0001]
[1737184375216,24.44418251,233.39,233.38,0.0001]
[1737184375404,7.5936647,233.39,233.38,0.0001]
[1737184375594,23.66916925,233.39,233.38,0.0001]
[1737184375790,22.55251553,233.39,233.38,0.0001]
[1737184375995,5.70199772,233.39,233.38,0.0001]
[1737184376997,5.70199772,233.39,233.38,16.85061781]
[1737184377203,9.772e-05,233.39,233.38,16.85061781]
[1737184377590,9.772e-05,233.39,233.38,17.49308225]
[1737184377802,16.85051781,233.49,233.38,16.85061781]
[1737184378005,16.85051781,233.44,233.38,0.0001]
[1737184378203,0.77501326,233.48,233.4,16.85051781]
[1737184378404,29.70371781,233.61,233.47,16.85051781]
[1737184378606,16.26426092,233.71,233.56,4.2815]
[1737184378607,16.85051781,233.65,233.56,4.2815]
[1737184378806,16.85051781,233.57,233.42,3.491]
[1737184379016,0.77501326,233.58,233.47,16.85051781]
[1737184379216,16.85051781,233.55,233.47,16.85051781]
[1737184379415,20.0,233.45,233.38,0.0001]
[1737184379623,16.85051781,233.48,233.38,0.0001]
[1737184379624,16.85051781,233.39,233.38,0.0001]
[1737184380613,16.85051781,233.42,233.38,0.0001]
[1737184381118,16.85051781,233.44,233.38,0.0001]
[1737184381505,16.85051781,233.4,233.38,0.0001]
[1737184381893,16.85051781,233.42,233.38,0.0001]
[1737184382222,16.85051781,233.4,233.38,0.0001]
[1737184382901,21.13501781,233.4,233.38,0.0001]
[1737184383099,16.85051781,233.42,233.38,0.0001]
[1737184383293,16.85051781,233.44,233.38,0.0001]
[1737184383496,16.85051781,233.42,233.38,0.0001]
[1737184385723,4.2835,233.45,233.38,0.0001]
[1737184385724,16.85051781,233.4,233.38,0.0001]
[1737184387113,4.2846,233.39,233.38,0.0001]
[1737184387514,16.85051781,233.4,233.38,0.0001]
[1737184387713,21.13501781,233.4,233.38,0.0001]
[1737184388215,16.85051781,233.4,233.38,0.0001]
[1737184388416,5.05961326,233.39,233.38,0.0001]
[1737184388622,16.85051781,233.4,233.38,0.0001]
[1737184389318,4.2846,233.39,233.38,0.0001]
[1737184389513,16.85051781,233.4,233.38,0.0001]
[1737184389727,16.85051781,233.44,233.38,0.0001]
[1737184390725,16.85051781,233.42,233.38,0.0001]
[1737184391708,16.85051781,233.4,233.38,0.0001]
[1737184392328,5.05891326,233.43,233.38,0.0001]
[1737184392523,0.77501326,233.49,233.38,0.0001]
[1737184392729,16.85051781,233.47,233.38,0.0001]
[1737184393210,16.85051781,233.45,233.38,0.0001]
[1737184393715,16.85051781,233.47,233.38,4.2849]
[1737184394019,4.2831,233.48,233.39,16.85051781]
[1737184394229,16.85051781,233.47,233.38,0.0001]
[1737184394402,16.85051781,233.45,233.38,0.0001]
[1737184396108,4.2837,233.44,233.38,0.0001]
[1737184396420,16.85051781,233.45,233.38,0.0001]
[1737184396618,21.13411781,233.45,233.38,0.0001]
[1737184396923,16.85051781,233.45,233.38,0.0001]
[1737184397102,21.13401781,233.45,233.38,0.0001]
[1737184397525,16.85051781,233.45,233.38,0.0001]
[1737184397722,21.13421781,233.45,233.38,0.0001]
[1737184397906,21.13421781,233.45,233.38,16.85061781]
[1737184398307,21.13381781,233.47,233.38,16.85061781]
[1737184398731,16.85051781,233.42,233.38,0.0001]
[1737184400017,16.85051781,233.4,233.38,0.0001]
[1737184400210,0.063,233.45,233.39,16.85051781]
[1737184401625,0.063,233.45,233.4,4.2844]
[1737184402013,0.063,233.45,233.39,16.85051781]
[1737184402213,4.3466,233.45,233.39,16.85051781]
[1737184402729,0.063,233.45,233.41,16.85051781]
[1737184402943,0.063,233.45,233.43,16.85051781]
[1737184403429,0.063,233.45,233.41,16.85051781]
[1737184403936,0.063,233.45,233.4,4.2844]
[1737184404228,4.2837,233.44,233.38,0.0001]
[1737184404434,0.063,233.45,233.38,0.0001]
[1737184404640,0.063,233.45,233.38,4.2848]
[1737184405144,4.3466,233.45,233.38,0.0001]
[1737184405437,16.85051781,233.42,233.38,0.0001]
[1737184405739,21.13501781,233.4,233.38,0.0001]
[1737184405934,4.2845,233.4,233.38,0.0001]
[1737184406637,4.2839,233.43,233.38,0.0001]
[1737184407215,16.85051781,233.42,233.38,0.0001]
[1737184408125,4.2843,233.41,233.38,0.0001]
[1737184408944,21.13451781,233.43,233.38,0.0001]
[1737184410330,16.85051781,233.43,233.38,0.0001]
[1737184410839,21.13441781,233.43,233.38,0.0001]
[1737184412916,3.18635498,233.42,233.38,0.0001]
[1737184413121,16.85051781,233.41,233.38,0.0001]
[1737184414046,3.18635498,233.4,233.38,0.0001]
[1737184414248,4.2846,233.39,233.38,0.0001]
[1737184414426,10.65786601,233.4,233.38,0.0001]
[1737184414623,8.92239896,233.4,233.38,0.0001]
[1737184415524,6.37336601,233.39,233.38,0.0001]
[1737184416453,8.92239896,233.39,233.38,0.0001]
[1737184417018,8.92239896,233.39,233.38,16.85061781]
[1737184417431,8.92239896,233.39,233.38,0.0001]
[1737184418125,5.73604398,233.39,233.38,0.0001]
[1737184418352,3.18701103,233.39,233.38,0.0001]
[1737184419146,3.18701103,233.39,233.38,16.85061781]
[1737184419526,3.18701103,233.39,233.38,17.49316001]
[1737184419726,0.063,233.45,233.38,0.6426422]
[1737184419957,0.063,233.45,233.44,16.85051781]
[1737184421049,0.063,233.45,233.44,21.13421781]
[1737184421557,6.35128046,233.58,233.44,26.19492549]
[1737184421735,36.59724546,233.59,233.57,10.55963432]
[1737184422132,36.59724546,233.59,233.53,10.55963432]
[1737184422328,10.55963432,233.55,233.43,12.4474]
[1737184422640,10.55963432,233.55,233.37,12.4474]
[1737184422641,0.77501326,233.55,233.37,12.4474]
[1737184422943,4.283,233.48,233.37,12.4474]
[1737184423151,0.77501326,233.55,233.47,10.55963432]
[1737184423152,4.2818,233.55,233.47,10.55963432]
[1737184423354,4.2818,233.55,233.49,16.89415492]
[1737184423738,3.19405262,233.54,233.45,16.89415492]
[1737184423932,16.89415492,233.53,233.45,16.89415492]
[1737184424253,16.89415492,233.49,233.4,16.89415492]
[1737184424555,16.89415492,233.45,233.38,0.0001]
[1737184424759,16.89415492,233.47,233.38,16.89425492]
[1737184424933,4.2833,233.46,233.38,16.89425492]
[1737184425651,3.19405262,233.45,233.38,16.89425492]
[1737184426257,16.89415492,233.43,233.38,0.0001]
[1737184427047,16.89415492,233.41,233.38,0.0001]
[1737184427547,4.2837,233.44,233.28,21.18065492]
[1737184427548,3.1900552,233.42,233.35,12.21332174]
[1737184427748,3.18955602,233.4,233.37,16.89415492]
[1737184427962,3.18955602,233.4,233.39,16.89415492]
[1737184428165,5.74313711,233.4,233.39,16.89415492]
[1737184428538,5.74313711,233.4,233.35,0.64253475]
[1737184428862,2.55358109,233.4,233.33,16.89415492]
[1737184429064,19.44773601,233.4,233.33,16.89415492]
[1737184429249,2.55358109,233.4,233.33,16.89415492]
[1737184429841,21.17825492,233.42,233.33,16.60815492]
[1737184430145,21.17825492,233.42,233.3,4.2862]
[1737184430352,21.17825492,233.42,233.32,16.89415492]
[1737184431067,16.89415492,233.4,233.32,16.89415492]
[1737184431442,16.89415492,233.4,233.3,16.89415492]
[1737184431645,16.89415492,233.36,233.28,16.89415492]
[1737184432043,16.89415492,233.36,233.25,4.2871]
[1737184432044,16.89415492,233.34,233.25,4.2871]
[1737184432248,16.89415492,233.26,233.16,4.2887]
[1737184432470,16.89415492,233.19,233.12,4.2896]
[1737184432777,16.89415492,233.18,233.09,4.2901]
[1737184432945,12.5652,233.26,233.11,16.89415492]
[1737184433151,16.89415492,233.2,233.11,4.2897]
[1737184433349,4.2872,233.25,233.12,16.89415492]
[1737184433553,16.89415492,233.23,233.11,4.2897]
[1737184433866,21.18115492,233.27,233.18,16.89415492]
[1737184434179,16.89415492,233.29,233.22,16.89415492]
[1737184434345,21.17995492,233.33,233.24,16.89415492]
[1737184434679,16.89415492,233.28,233.16,3.4807]
[1737184434870,16.89415492,233.28,233.19,16.89415492]
[1737184435249,16.89415492,233.24,233.17,16.89415492]
[1737184435859,16.89415492,233.24,233.15,21.18305492]
[1737184436172,16.89415492,233.19,233.11,21.18385492]
[1737184436383,16.89415492,233.18,233.11,21.18385492]
[1737184437257,16.89415492,233.12,233.05,16.89415492]
[1737184437459,16.89415492,233.16,233.07,16.89415492]
[1737184437653,16.89415492,233.18,233.11,16.89415492]
[1737184437852,16.89415492,233.2,233.11,16.89415492]
[1737184438172,16.89415492,233.18,233.11,16.89415492]
[1737184439171,16.89415492,233.22,233.13,16.89415492]
[1737184439552,16.89415492,233.22,233.15,16.89415492]
[1737184439877,21.18165492,233.24,233.15,16.89415492]
[1737184440165,16.89415492,233.22,233.15,16.89415492]
[1737184440467,16.89415492,233.24,233.17,16.89415492]
[1737184440771,16.89415492,233.26,233.19,16.89415492]
[1737184440953,4.2863,233.3,233.15,4.2889]
[1737184440954,16.89415492,233.24,233.15,16.89415492]
[1737184441268,16.89415492,233.26,233.19,16.89415492]
[1737184441570,16.89415492,233.24,233.17,16.89415492]
[1737184441778,16.89415492,233.22,233.15,16.89415492]
[1737184441956,16.89415492,233.26,233.17,16.89415492]
[1737184442161,16.89415492,233.24,233.15,16.89415492]
[1737184442373,16.89415492,233.19,233.11,16.89415492]
[1737184442858,16.89415492,233.21,233.11,16.89415492]
[1737184443062,16.89415492,233.21,233.13,16.89415492]
[1737184443253,16.89415492,233.21,233.09,16.89415492]
[1737184443480,16.89415492,233.23,233.13,16.89415492]
[1737184443676,16.89415492,233.25,233.17,16.89415492]
[1737184443979,16.89415492,233.25,233.15,16.89415492]
[1737184444153,4.2866,233.29,233.13,16.89415492]
[1737184444154,16.89415492,233.21,233.13,16.89415492]
[1737184444354,16.89415492,233.19,233.11,16.89415492]
[1737184445175,16.89415492,233.17,233.08,3.4807]
[1737184445370,4.287,233.26,233.13,16.89415492]
[1737184445582,16.89415492,233.15,233.05,16.89415492]
[1737184445780,16.89415492,233.1,233.03,16.89415492]
[1737184446082,16.89415492,233.12,233.03,16.89415492]
[1737184446473,16.89415492,233.12,233.02,17.3052]
[1737184446685,16.89415492,233.12,233.04,16.89415492]
[1737184447375,16.89415492,233.12,233.04,21.18515492]
[1737184447578,16.89415492,233.12,233.04,16.89415492]
[1737184448089,16.89415492,233.14,233.06,16.89415492]
[1737184448777,16.89415492,233.22,233.12,16.89415492]
[1737184448957,16.89415492,233.22,233.15,16.89415492]
[1737184449264,16.89415492,233.24,233.15,17.53726377]
[1737184449460,16.89415492,233.24,233.15,21.82626377]
[1737184449676,16.89415492,233.26,233.17,16.89415492]
[1737184449874,16.89415492,233.28,233.19,16.89415492]
[1737184450077,16.89415492,233.24,233.17,16.89415492]
[1737184450281,3.4613,233.38,233.23,16.89415492]
[1737184450462,16.89415492,233.33,233.25,16.89415492]
[1737184450657,16.89415492,233.42,233.32,16.89415492]
[1737184450853,16.89415492,233.34,233.26,16.89415492]
[1737184451057,16.89415492,233.34,233.19,0.64271083]
[1737184451277,41.0086,233.36,233.31,16.89415492]
[1737184451481,41.0086,233.36,233.35,16.89415492]
[1737184451661,57.90275492,233.36,233.21,0.64268623]
[1737184451858,57.90275492,233.36,233.26,16.89415492]
[1737184452081,41.0086,233.36,233.32,16.89415492]
[1737184452264,41.0086,233.36,233.2,4.2881]
[1737184452265,41.0086,233.36,233.34,16.89415492]
[1737184452963,16.89415492,233.43,233.34,16.89415492]
[1737184453571,16.89415492,233.43,233.31,4.286]
[1737184453884,16.89415492,233.43,233.33,16.89415492]
[1737184454064,0.77501326,233.51,233.33,16.89415492]
[1737184454065,0.063,233.55,233.41,16.89415492]
[1737184454265,0.063,233.55,233.52,16.89415492]
[1737184454476,0.063,233.55,233.54,16.89415492]
[1737184454690,6.63266219,233.67,233.57,20.0]
[1737184454995,6.63266219,233.67,233.58,0.64181848]
[1737184455154,6.63266219,233.67,233.61,16.89415492]
[1737184455360,16.89415492,233.64,233.55,16.89415492]
[1737184455566,16.89415492,233.61,233.53,16.89415492]
[1737184456365,4.3428,233.66,233.43,0.64212669]
[1737184456366,0.063,233.66,233.6,16.89415492]
[1737184456663,16.89415492,233.75,233.64,16.89415492]
[1737184456872,16.89415492,233.75,233.66,16.89415492]
[1737184457071,16.89415492,233.79,233.7,16.89415492]
[1737184457280,16.89415492,233.77,233.67,0.64167117]
[1737184457458,16.95715492,233.71,233.63,16.89415492]
[1737184457780,16.95715492,233.71,233.61,16.89415492]
[1737184457992,16.87493534,233.68,233.56,0.64187294]
[1737184458169,16.87493534,233.66,233.54,4.2818]
[1737184458367,0.063,233.71,233.52,4.2822]
[1737184458576,16.87493534,233.65,233.52,4.2822]
[1737184458879,16.87493534,233.61,233.46,0.64204351]
[1737184459185,16.87493534,233.63,233.46,0.64204351]
[1737184459382,16.87493534,233.63,233.48,4.2829]
[1737184459686,16.87493534,233.69,233.5,20.0]
[1737184459882,16.87493534,233.69,233.51,0.64191984]
[1737184460187,16.87493534,233.67,233.51,0.64191984]
[1737184460562,4.3419,233.71,233.51,1.83774664]
[1737184460563,16.87493534,233.69,233.51,1.83774664]
[1737184460786,16.87493534,233.69,233.46,21.4164]
[1737184461175,16.87493534,233.67,233.46,21.4164]
[1737184461391,16.87493534,233.67,233.66,0.03]
[1737184463262,16.87493534,233.67,233.5,20.0]
[1737184463468,16.87493534,233.64,233.5,20.0]
[1737184463765,0.063,233.71,233.5,20.0]
[1737184463975,0.063,233.71,233.55,20.0]
[1737184464184,0.063,233.71,233.55,25.44516738]
[1737184464391,4.2764,233.84,233.55,20.0]
[1737184464610,16.87493534,233.74,233.51,12.7146]
[1737184465307,16.87493534,233.76,233.55,34.986]
[1737184465510,16.87493534,233.78,233.55,34.986]
[1737184465685,16.87493534,233.76,233.55,34.986]
[1737184466092,0.063,234.0,233.69,25.2]
[1737184466289,16.87493534,233.98,233.7,66.11641129]
[1737184466579,16.87493534,233.8,233.61,16.3444]
[1737184466808,16.87493534,233.82,233.61,16.3444]
[1737184466986,16.87493534,233.88,233.64,20.0]
[1737184466987,16.87493534,233.8,233.64,20.0]
[1737184467192,0.80196849,233.91,233.64,19.95]
[1737184467392,16.87493534,233.91,233.65,36.3791]
[1737184467595,16.87493534,233.89,233.65,48.10306738]
[1737184467811,16.87493534,233.87,233.65,48.10306738]
[1737184468044,16.87493534,233.79,233.65,4.2799]
[1737184468185,16.87493534,233.85,233.65,14.9796]
[1737184468391,16.87493534,233.87,233.66,6.32396738]
[1737184468915,16.87493534,233.85,233.66,6.32396738]
[1737184469224,16.87493534,233.83,233.65,14.9796]
[1737184469394,27.39252843,233.82,233.68,20.0]
[1737184469602,27.39252843,233.82,233.65,10.6997]
[1737184469796,27.39252843,233.74,233.62,4.2804]